[Event "44th Chess Olympiad Women 2022"]
[Site "Chennai"]
[Date "2022.08.03"]
[Round "6.21"]
[White "Cassi, Elisa"]
[Black "Avelino, Camila Biscaya"]
[Result "1-0"]
[WhiteElo "1922"]
[BlackElo "1863"]
[Annotator "NA RC"]
[PlyCount "67"]
[EventDate "2022.??.??"]
[TimeControl "60"]

1. e4 {[%emt 0:00:03]} e5 {[%emt 0:00:36]} 2. Nf3 {[%emt 0:00:05]} Nc6 {
[%emt 0:00:47]} 3. Nc3 {[%emt 0:00:08]} Nf6 {[%emt 0:00:49]} 4. h3 {[%emt 0:00:
00]} h6 {[%emt 0:04:20]} 5. d4 {[%emt 0:01:06]} exd4 {[%emt 0:00:43]} 6. Nxd4 {
[%emt 0:00:06]} Bb4 {[%emt 0:01:36]} 7. Nxc6 {[%emt 0:00:19]} bxc6 {[%emt 0:00:
00]} 8. Bd3 {[%emt 0:00:59]} d5 {[%emt 0:01:43]} 9. e5 {[%emt 0:00:16]} Nd7 {
[%emt 0:27:27]} 10. Qg4 {[%emt 0:18:50]} Bxc3+ {[%emt 0:04:49]} 11. bxc3 {
[%emt 0:03:46]} Qe7 {[%emt 0:02:20]} 12. O-O {[%emt 0:02:32]} Qxe5 {[%emt 0:00:
00]} 13. Ba3 {[%emt 0:08:50]} Nb6 {[%emt 0:06:06]} 14. Qb4 {[%emt 0:14:38]} Qd6
{[%emt 0:02:39]} 15. Rae1+ {[%emt 0:04:16]} Be6 {[%emt 0:04:18]} 16. Qa5 {
[%emt 0:05:46]} Qd8 {[%emt 0:00:41]} 17. f4 {[%emt 0:00:45]} g6 {[%emt 0:01:04]
} 18. f5 {[%emt 0:06:12]} gxf5 {[%emt 0:02:14]} 19. Bxf5 {[%emt 0:00:15]} Kd7 {
[%emt 0:14:56]} 20. Bxe6+ {[%emt 0:08:19]} fxe6 {[%emt 0:00:10]} 21. Rf7+ {
[%emt 0:00:19]} Kc8 {[%emt 0:00:12]} 22. Qa6+ {[%emt 0:02:11]} Kb8 {[%emt 0:00:
00]} 23. Rxe6 {[%emt 0:00:12]} Qc8 {[%emt 0:05:45]} 24. Qe2 {[%emt 0:02:08]}
Kb7 {[%emt 0:01:58]} 25. Bd6 {[%emt 0:01:19]} Nd7 {[%emt 0:02:53]} 26. Ree7 {
[%emt 0:03:40]} cxd6 {[%emt 0:01:55]} 27. Rxd7+ {[%emt 0:00:07]} Kb6 {[%emt 0:
00:00]} 28. Qe3+ {[%emt 0:01:40]} c5 {[%emt 0:00:55]} 29. Rxd6+ {[%emt 0:00:25]
} Ka5 {[%emt 0:01:52]} 30. c4 {[%emt 0:01:23]} dxc4 {[%emt 0:00:52]} 31. Qa3+ {
[%emt 0:00:34]} Kb5 {[%emt 0:00:08]} 32. Rf1 {[%emt 0:00:18]} c3 {[%emt 0:00:
00]} 33. Rb1+ {[%emt 0:00:08]} Kc4 {[%emt 0:00:04]} 34. Qb3# {[%emt 0:00:02]}
1-0

[Event "44th Chess Olympiad Women 2022"]
[Site "Chennai"]
[Date "2022.08.03"]
[Round "6.21"]
[White "Pipiras, Filipa Fortuna"]
[Black "Brunello, Marina"]
[Result "1/2-1/2"]
[WhiteElo "2139"]
[BlackElo "2341"]
[Annotator "TA"]
[PlyCount "140"]
[EventDate "2022.??.??"]
[TimeControl "60"]

{[%evp 20,140,31,33,43,-7,39,23,82,79,65,67,181,185,249,141,215,208,208,214,
216,200,226,0,187,197,184,165,154,152,152,135,134,121,127,114,114,123,138,96,
96,76,75,79,96,14,14,14,14,14,14,13,13,13,13,13,13,0,14,14,14,14,14,14,14,14,
16,16,18,16,23,24,39,39,47,54,55,55,62,62,62,62,62,62,112,112,112,62,112,62,
112,62,62,70,112,83,112,112,112,112,112,112,126,112,112,112,112,112,112,83,112,
112,112,13,13,13,13,13,13,0,13,0,13]} 1. d4 {[%emt 0:01:49]} Nf6 {[%emt 0:00:
00]} 2. c4 {[%emt 0:00:15]} c5 {[%emt 0:00:05]} 3. d5 {[%emt 0:00:38]} e6 {
[%emt 0:00:11]} 4. Nc3 {[%emt 0:00:33]} exd5 {[%emt 0:00:06]} 5. cxd5 {[%emt 0:
00:00]} d6 {[%emt 0:00:04]} 6. Nf3 {[%emt 0:03:04]} g6 {[%emt 0:00:07]} 7. Nd2
{[%emt 0:01:25]} Bg7 {[%emt 0:07:05]} 8. e4 {[%emt 0:00:31]} O-O {[%emt 0:00:
00]} 9. Be2 {[%emt 0:01:04]} Na6 {[%emt 0:01:19]} 10. O-O {[%emt 0:01:34]} Nc7
{[%emt 0:00:05]} 11. a4 {[%emt 0:01:37]} Qe7 {[%emt 0:05:34] A73: Modern
Benoni: Classical: Unusual Black 9th moves.} 12. f4 {[%emt 0:07:22] [#]} (12.
Re1 $14) 12... Rb8 $146 {[%emt 0:02:57]} (12... Re8 $11 {is superior.}) ({
Predecessor:} 12... a6 13. Bf3 Rb8 14. Nc4 b5 15. axb5 axb5 16. Nxd6 Qxd6 17.
e5 Qd8 18. d6 Nce8 19. exf6 Bxf6 {0-1 (31) Holzer,J (1899)-Paerr,M (2079)
Bayern 2013}) 13. Re1 $14 {[%emt 0:06:53]} Na6 {[%emt 0:09:51]} (13... Re8 $11
{keeps the balance.}) 14. Bf3 $16 {[%emt 0:03:45]} Nb4 {[%emt 0:00:12]} 15. Nc4
{[%emt 0:05:53]} a6 {[%emt 0:09:47]} (15... Rd8 $14) 16. e5 $18 {[%emt 0:20:19]
} Ne8 {[%emt 0:00:22]} 17. Ne4 {[%emt 0:02:00]} (17. Be3 $18) 17... dxe5 {
[%emt 0:06:04]} (17... Bf5 $16) 18. fxe5 {[%emt 0:01:02] aiming for Bg5.} b5 {
[%emt 0:01:44]} 19. axb5 {[%emt 0:11:44]} axb5 {[%emt 0:00:05]} 20. Bg5 {
[%emt 0:04:13]} Qd7 {[%emt 0:03:48]} 21. Ncd6 {[%emt 0:01:44]} (21. Nxc5 Qc7
22. Be3 bxc4 $11) (21. Na5 $18) 21... Bxe5 $2 {[%emt 0:04:04]} (21... Nxd6 $1
$11 22. exd6 (22. Nxd6 c4 $11) 22... c4) 22. Nxe8 $1 {[%emt 0:02:34]} ({And not
} 22. Nxc8 Rxc8 23. Nxc5 Qc7 $11) 22... Rxe8 {[%emt 0:00:18]} (22... Bd4+ $2
23. Qxd4 $3 cxd4 24. N8f6+ Kg7 25. Nxd7 $18) 23. Bf6 {[%emt 0:00:00]} ({
Much less strong is} 23. Nxc5 $6 Qc7 24. Ne4 Bf5 $16) 23... Qf5 {[%emt 0:09:13]
} (23... Qxd5 $2 24. Bxe5 (24. Qxd5 Nxd5 25. Bxe5 Rxe5 $16) 24... Qxe5 25. Nf6+
$1 Qxf6 26. Rxe8+ Kg7 27. Qd8 Qxd8 28. Rxd8 $18) (23... Nxd5 $2 24. Nxc5 Qf5
25. Bxe5 Rxe5 26. Rxe5 Qxe5 27. Qxd5 $18) 24. Bxe5 {[%emt 0:02:23]} Rxe5 {
[%emt 0:00:08] [#]} 25. Bg4 $1 {[%emt 0:05:07]} Rxd5 {[%emt 0:06:19]} 26. Bxf5
{[%emt 0:00:33] Strongly threatening Nf6+.} Rxd1 {[%emt 0:00:05]} 27. Raxd1 {
[%emt 0:00:37]} Bxf5 {[%emt 0:00:05]} 28. Nxc5 {[%emt 0:00:49]} Rc8 {[%emt 0:
00:33]} 29. Ne4 {[%emt 0:03:16]} Rc2 {[%emt 0:00:00]} 30. Nc3 {[%emt 0:07:05]}
Rxb2 {[%emt 0:04:48]} 31. Nxb5 {[%emt 0:00:44]} Nd3 {[%emt 0:01:37]} 32. Re8+ {
[%emt 0:00:27]} ({White should try} 32. Rb1 $1 $16) 32... Kg7 $11 {[%emt 0:00:
02]} 33. Nd6 {[%emt 0:00:44]} Nf4 {[%emt 0:00:00]} 34. Nxf5+ {[%emt 0:00:08]}
gxf5 {[%emt 0:00:04] Endgame KRR-KRN} 35. Kh1 {[%emt 0:00:33]} Rxg2 {[%emt 0:
00:13]} 36. Rf1 {[%emt 0:00:51]} Rg4 {[%emt 0:00:06]} 37. Re3 {[%emt 0:00:25]}
Ng2 {[%emt 0:08:26]} 38. Rg3 {[%emt 0:00:00]} Rxg3 {[%emt 0:00:10]} 39. hxg3 {
[%emt 0:00:07] KR-KN} Ne3 {[%emt 0:00:00]} 40. Rf3 {[%emt 0:00:09]} Ng4 {
[%emt 0:00:55]} 41. Rxf5 {[%emt 0:30:10] Intending Rg5+ and mate.} h6 {[%emt 0:
31:43] Against Rg5+} 42. Rf4 {[%emt 0:00:00]} Nf6 {[%emt 0:00:00]} 43. Kg2 {
[%emt 0:00:00]} Nh7 {[%emt 0:00:00]} 44. Ra4 {[%emt 0:00:00]} Ng5 {[%emt 0:00:
00]} 45. Ra6 {[%emt 0:00:00]} Kh7 {[%emt 0:00:00]} 46. Kf2 {[%emt 0:00:00]} Kg7
{[%emt 0:00:00]} 47. Ke3 {[%emt 0:00:00]} Ne6 {[%emt 0:00:00]} 48. Ra8 {
[%emt 0:00:00]} Ng5 {[%emt 0:00:00]} 49. Kf4 {[%emt 0:00:00]} Ne6+ {[%emt 0:00:
00]} 50. Kg4 {[%emt 0:00:00]} Kg6 {[%emt 0:00:00]} 51. Kh4 {[%emt 0:00:00]} Kg7
{[%emt 0:00:00]} (51... f6 $14 52. Ra5 Nd4) 52. Kh5 $1 $16 {[%emt 0:00:00]} Kh7
{[%emt 0:00:00] [#]} 53. Ra7 {[%emt 0:00:00]} (53. Ra6 $1 $16) 53... Kg7 {
[%emt 0:00:00]} (53... Ng7+ $1 $14 54. Kg4 Kg6 55. Ra6+ f6) 54. Ra6 {[%emt 0:
00:00]} (54. Rd7 $16) 54... Kh7 $14 {[%emt 0:00:00] [#]} 55. Kg4 {[%emt 0:00:
00]} (55. Kh4 $1 $16) 55... Kg6 {[%emt 0:00:00]} 56. Ra8 {[%emt 0:00:00]} Kg7 {
[%emt 0:00:00]} 57. Kf5 {[%emt 0:00:00]} Nc7 {[%emt 0:00:00]} 58. Ra7 {[%emt 0:
00:00]} Ne6 {[%emt 0:00:00]} 59. Rd7 {[%emt 0:00:00]} Ng5 {[%emt 0:00:00]} 60.
Rd6 {[%emt 0:00:00]} Ne6 {[%emt 0:00:00]} 61. Kg4 {[%emt 0:00:00]} Kg6 {
[%emt 0:00:00]} 62. Kh4 {[%emt 0:00:00]} Kg7 {[%emt 0:00:00]} 63. Kh5 {[%emt 0:
00:00]} Kh7 {[%emt 0:00:00]} 64. Rd1 {[%emt 0:00:00]} Kg7 {[%emt 0:00:00]} 65.
Rf1 {[%emt 0:00:00]} Ng5 {[%emt 0:00:00]} 66. g4 {[%emt 0:00:00]} ({White
should play} 66. Rf4 $16) 66... Ne6 $11 {[%emt 0:00:00] The position is equal.}
67. Rf5 {[%emt 0:00:00]} Ng5 {[%emt 0:00:00]} 68. Ra5 {[%emt 0:00:00]} Ne6 {
[%emt 0:00:00]} 69. Rf5 {[%emt 0:00:00]} (69. Ra1 $5 {[%cal Ra1f1]}) 69... Ng5
{[%emt 0:00:00]} 70. Ra5 {[%emt 0:00:00]} Ne6 {[%emt 0:00:00] White really
could win this. Weighted Error Value: White=0.17 (very precise) /Black=0.18 
(very precise)} 1/2-1/2

[Event "44th Chess Olympiad Women 2022"]
[Site "Chennai"]
[Date "2022.08.03"]
[Round "6.21"]
[White "Silva, Mariana Sofia T."]
[Black "Gueci, Tea"]
[Result "0-1"]
[WhiteElo "1912"]
[BlackElo "2254"]
[Annotator "TA"]
[PlyCount "62"]
[EventDate "2022.??.??"]
[TimeControl "60"]

{[%evp 19,62,29,38,30,34,23,38,-12,0,-32,0,16,26,19,16,16,41,19,18,-76,-63,-88,
-117,-149,-166,-168,-35,-200,-120,-235,-256,-415,-431,-416,-423,-603,-602,
-1092,-1068,-1157,-1145,-29984,-29985,-29984,-4013]} 1. d4 {[%emt 0:00:02]} Nf6
{[%emt 0:00:04]} 2. c4 {[%emt 0:00:07]} e6 {[%emt 0:00:03]} 3. g3 {[%emt 0:00:
00]} c5 {[%emt 0:00:30]} 4. d5 {[%emt 0:00:11]} exd5 {[%emt 0:00:05]} 5. cxd5 {
[%emt 0:00:06]} d6 {[%emt 0:00:07]} 6. Bg2 {[%emt 0:00:25]} g6 {[%emt 0:00:12]}
7. Nc3 {[%emt 0:00:08]} Bg7 {[%emt 0:00:13]} 8. Nf3 {[%emt 0:00:08]} O-O {
[%emt 0:00:10]} 9. O-O {[%emt 0:00:07]} Nbd7 {[%emt 0:00:42]} 10. Bf4 {[%emt 0:
00:00]} Qe7 {[%emt 0:00:54]} 11. Re1 {[%emt 0:08:37] A62: Modern Benoni:
Fianchetto Variation without early ...Nbd7.} a6 {[%emt 0:01:25]} 12. a4 {
[%emt 0:00:09]} Ng4 {[%emt 0:03:33]} 13. e4 {[%emt 0:02:43]} ({White should
play} 13. a5 $14) 13... Nge5 $11 {[%emt 0:03:36]} 14. Qe2 {[%emt 0:17:13]} Rb8
{[%emt 0:08:00]} (14... Nxf3+ $15 15. Qxf3 (15. Bxf3 g5 $11) 15... Ne5) 15. Nd2
{[%emt 0:04:44]} Re8 {[%emt 0:11:07]} 16. h3 {[%emt 0:07:38] [#]} b6 $146 {
[%emt 0:08:03]} ({Predecessor:} 16... Qd8 17. Be3 f5 18. f4 Nf7 19. Kh2 Nf6 20.
exf5 Bxf5 21. Qf3 h5 22. Bf2 Qb6 23. Nde4 Nxe4 24. Nxe4 Qxb2 25. Ng5 Nxg5 26.
fxg5 Rf8 27. Ra3 Bd7 {0-1 (27) Bator,R (2410)-Bacrot,E (2705) Kallithea 2008})
17. Be3 {[%emt 0:03:44]} g5 {[%emt 0:11:34]} 18. Nf1 {[%emt 0:06:43]} c4 {
[%emt 0:02:57]} 19. Red1 {[%emt 0:18:16]} (19. Nd2 $1 $11) 19... Nd3 {[%emt 0:
00:00]} 20. Qd2 {[%emt 0:04:37]} h6 {[%emt 0:05:24]} 21. h4 {[%emt 0:04:55]
[%cal Rh4g5]} gxh4 {[%emt 0:06:12] Hoping for ...N7c5.} 22. Bxh6 {[%emt 0:00:
00]} h3 {[%emt 0:00:52]} ({Black should try} 22... N7c5 $19 {White must now
prevent ...Nb3.} 23. Bxg7 Kxg7) 23. Bh1 $2 {[%emt 0:05:16]} (23. Bxh3 $2 N7e5
24. Bg2 {[#]} Nxf2 $1 25. Bxg7 Nh3+ 26. Kh1 (26. Kh2 $2 Kxg7 27. Ne2 Rh8 $19)
26... Kxg7 $19) ({White has to play} 23. Bxg7 $1 $15 Kxg7 24. Bxh3) 23... N7e5
{[%emt 0:02:27]} 24. Bg5 {[%emt 0:03:09] Inhibits Qf6.} (24. Bxg7 $17 Kxg7 25.
f4) 24... f6 $19 {[%emt 0:02:00]} 25. Bh6 {[%emt 0:05:44]} (25. Be3) 25... Bxh6
{[%emt 0:07:48]} 26. Qxh6 {[%emt 0:00:02]} Nxf2 {[%emt 0:00:19][%cal Yb6b5,
Yd3f2,Yf2g4,Yg4e3]} 27. Rd2 {[%emt 0:00:48]} (27. Qf4 $142 Nxd1 28. Nxd1) 27...
Nfg4 {[%emt 0:00:51] Active counter play!} 28. Qxh3 {[%emt 0:02:48]} b5 {
[%emt 0:01:15] [#] aiming for ...Qa7+.} 29. Qh5 {[%emt 0:01:05]} Kg7 {[%emt 0:
00:51] Threatens to win with ...bxa4.} 30. Qh3 {[%emt 0:04:16]} Qa7+ {[%emt 0:
00:31]} 31. Kg2 {[%emt 0:00:16]} Ne3+ {[%emt 0:00:11] Weighted Error Value:
White=1.04/Black=0.16 (very precise)} 0-1

[Event "44th Chess Olympiad Women 2022"]
[Site "Chennai"]
[Date "2022.08.03"]
[Round "6.21"]
[White "Zimina, Olga"]
[Black "Chaves, Jussara"]
[Result "1-0"]
[WhiteElo "2340"]
[BlackElo "1933"]
[Annotator "TA"]
[PlyCount "73"]
[EventDate "2022.??.??"]
[TimeControl "60"]

{[%evp 13,73,28,24,30,40,30,29,27,39,37,33,29,47,25,41,37,86,91,123,121,122,75,
129,116,214,206,359,360,374,374,352,356,330,315,307,308,272,217,527,485,514,
477,490,453,561,418,400,407,472,438,548,537,664,661,906,896,897,894,894,877,
795,777]} 1. d4 {[%emt 0:00:04]} c6 {[%emt 0:00:31]} 2. Nf3 {[%emt 0:00:34]} g6
{[%emt 0:00:29]} 3. c4 {[%emt 0:02:10]} d5 {[%emt 0:01:03]} 4. e3 {[%emt 0:00:
00]} Bg7 {[%emt 0:00:31]} 5. Nbd2 {[%emt 0:00:27]} Nf6 {[%emt 0:00:39]} 6. Be2
{[%emt 0:00:06]} O-O {[%emt 0:00:48]} 7. O-O {[%emt 0:00:05]} Nbd7 {[%emt 0:00:
00]} 8. b4 {[%emt 0:00:25] D02:1 d4 d5 2 Nf3 sidelines, including 2...Nf6 3 g3
and 2...Nf6 3 Bf4.} a5 {[%emt 0:03:34]} 9. b5 {[%emt 0:00:05]} cxb5 {[%emt 0:
07:32]} 10. cxb5 {[%emt 0:07:37] White has an edge.} a4 {[%emt 0:05:27]} 11.
Ba3 {[%emt 0:01:09]} Nb6 {[%emt 0:01:28]} 12. Ne5 {[%emt 0:05:45][%cal Yf3e5,
Ye5d3,Yd3f4,Yf4h5]} Ne8 {[%emt 0:03:54]} 13. Rc1 {[%emt 0:07:16]} Nd6 {[%emt 0:
02:14] [#]} 14. Bc5 $146 {[%emt 0:09:55]} ({Predecessor:} 14. Bb4 Bf5 15. Rc5
Re8 16. Bf3 f6 17. g4 fxe5 18. gxf5 e4 19. Bg4 Nxf5 20. Bxf5 gxf5 {0-1 (38)
Tejas,R (2124)-Meenakshi,S (2336) Nagpur 2008}) 14... f6 {[%emt 0:02:59] [#]} (
14... Bf5 $14 {deserves consideration.}) 15. Nd3 $1 $16 {[%emt 0:00:55]} Bd7 {
[%emt 0:05:41]} 16. Nf4 {[%emt 0:04:20]} Ndc8 {[%emt 0:00:00]} 17. Nb1 {
[%emt 0:05:15] White is more active.} ({Better is} 17. Bg4) 17... g5 {[%emt 0:
02:22]} (17... Rf7 $142) 18. Nh5 {[%emt 0:00:34]} Nc4 {[%emt 0:00:00]} (18...
Bh6 $16 19. Bd3 Rf7) 19. Nc3 $18 {[%emt 0:03:12]} N8b6 $2 {[%emt 0:00:00] [#]}
(19... Be6 20. e4 (20. Nxa4 N8d6 $16) 20... N4b6) 20. Nxd5 $1 {[%emt 0:00:45]}
Nxd5 {[%emt 0:01:43]} 21. Bxc4 {[%emt 0:00:13]} Be6 {[%emt 0:00:27]} 22. e4 {
[%emt 0:04:20]} Nf4 {[%emt 0:02:42]} 23. Nxf4 {[%emt 0:00:00]} Bxc4 {[%emt 0:
00:08]} 24. Rxc4 {[%emt 0:00:03]} gxf4 {[%emt 0:00:13]} 25. Qg4 {[%emt 0:01:19]
Hoping for Qe6+.} Kf7 {[%emt 0:05:43]} (25... Qc8 {is a better chance.} 26. Qe2
(26. Qxf4 b6 $16) 26... f3 27. gxf3 Qd7) 26. b6 {[%emt 0:09:15][%cal Yc5e7]
Strongly threatening Bxe7!} Re8 {[%emt 0:08:33]} 27. Qxf4 {[%emt 0:00:37]} Qd7
{[%emt 0:05:58]} 28. Rfc1 {[%emt 0:07:03]} Rad8 {[%emt 0:01:20]} 29. Qf3 {
[%emt 0:00:36]} Kg8 {[%emt 0:01:51]} 30. h4 {[%emt 0:00:00]} Kh8 {[%emt 0:02:
34]} 31. Qf4 {[%emt 0:02:50] White is clearly winning.} Rg8 {[%emt 0:01:57]}
32. d5 {[%emt 0:02:42]} Bf8 {[%emt 0:01:21]} 33. Be3 {[%emt 0:01:37]} Rg4 {
[%emt 0:03:18]} 34. Rc7 {[%emt 0:00:19]} Rxf4 {[%emt 0:00:00]} 35. Rxd7 {
[%emt 0:00:04]} Rxd7 {[%emt 0:00:09]} 36. Bxf4 {[%emt 0:00:04]} Rd8 {[%emt 0:
01:09]} 37. Rc7 {[%emt 0:00:20] Weighted Error Value: White=0.18 (very precise)
/Black=0.50} 1-0

[Event "44th Chess Olympiad Women 2022"]
[Site "Chennai"]
[Date "2022.08.03"]
[Round "6.22"]
[White "Aulia, Medina Warda"]
[Black "Johannsdottir, Johanna Bjorg"]
[Result "1-0"]
[WhiteElo "2374"]
[BlackElo "1976"]
[Annotator "TA"]
[PlyCount "101"]
[EventDate "2022.??.??"]
[TimeControl "60"]

{[%evp 17,101,4,18,13,21,6,10,0,0,0,10,0,0,0,0,0,0,-23,0,0,0,0,0,0,8,-13,0,-12,
8,4,12,24,25,16,7,-12,0,0,8,0,114,111,100,113,123,115,115,94,141,110,131,131,
161,166,266,251,276,214,197,163,331,185,247,240,383,377,527,527,495,389,474,
481,474,472,472,470,446,413,425,409,415,387,460,449,412,379]} 1. e4 {[%emt 0:
00:00]} c5 {[%emt 0:00:05]} 2. Nf3 {[%emt 0:00:00]} d6 {[%emt 0:00:04]} 3. d4 {
[%emt 0:00:10]} cxd4 {[%emt 0:00:07]} 4. Nxd4 {[%emt 0:00:03]} Nf6 {[%emt 0:00:
00]} 5. Nc3 {[%emt 0:00:04]} a6 {[%emt 0:00:04]} 6. Be2 {[%emt 0:00:12]} e5 {
[%emt 0:00:45]} 7. Nb3 {[%emt 0:00:05]} Be7 {[%emt 0:00:06]} 8. O-O {[%emt 0:
00:00]} O-O {[%emt 0:00:38]} 9. a4 {[%emt 0:00:15]} Be6 {[%emt 0:00:46]} 10.
Bf3 {[%emt 0:00:05] B92: Sicilian Najdorf: 6 Be2.} Qc7 {[%emt 0:01:17]} 11. Re1
{[%emt 0:00:37]} Rc8 {[%emt 0:01:17] The main line 11...Rc8 scores better than
11...Nbd7.} 12. h3 {[%emt 0:01:09] The position is equal.} h6 {[%emt 0:00:08]}
13. Be3 {[%emt 0:02:37]} Nbd7 {[%emt 0:00:25]} 14. Nc1 {[%emt 0:01:06] [#]}
Rab8 $146 {[%emt 0:01:33]} ({Predecessor:} 14... Bd8 15. N1e2 Qb8 16. Ng3 Ba5
17. Bd2 Qc7 18. Rb1 Nb6 19. b4 Nc4 20. Bc1 Bb6 {½-½ (35) Sasikiran,K (2677)
-Giri,A (2762) Antalya 2017}) 15. Nd3 {[%emt 0:05:03]} Nb6 {[%emt 0:05:44]} 16.
Bc1 {[%emt 0:03:29]} Bd8 {[%emt 0:09:59]} 17. Re2 {[%emt 0:05:06]} Bc4 {
[%emt 0:08:30]} 18. Bd2 {[%emt 0:08:16]} Nbd7 {[%emt 0:09:52]} 19. b3 {[%emt 0:
00:00]} Bxd3 {[%emt 0:11:52]} 20. cxd3 {[%emt 0:00:05]} Nc5 {[%emt 0:00:08]}
21. Be1 {[%emt 0:18:15]} Ne6 {[%emt 0:02:03]} 22. Rb2 {[%emt 0:11:21]} (22. Nd5
Nxd5 23. exd5 Nd4 $17) 22... Nd4 {[%emt 0:01:33]} 23. Bg4 {[%emt 0:00:02]} Nxg4
{[%emt 0:01:42]} 24. Qxg4 {[%emt 0:00:05]} f5 {[%emt 0:13:22]} 25. Qg6 {
[%emt 0:05:37]} f4 {[%emt 0:02:27]} 26. Qe8+ {[%emt 0:04:22]} Kh7 {[%emt 0:00:
00]} 27. Nd5 {[%emt 0:00:04]} Qc6 {[%emt 0:01:08]} 28. Qf7 {[%emt 0:03:30]} b6
{[%emt 0:02:11]} (28... b5 $11) 29. Bc3 $16 {[%emt 0:02:36] aiming for Bxd4.
Black is now going downhill.} Rb7 {[%emt 0:02:31]} 30. Qh5 {[%emt 0:02:31]} g6
{[%emt 0:00:34]} 31. Qd1 {[%emt 0:00:05]} Ne6 {[%emt 0:02:50]} 32. Rc1 {
[%emt 0:00:09]} Rf7 {[%emt 0:01:18]} ({Black should play} 32... Qd7) 33. Rbc2 {
[%emt 0:01:29][%cal Yc3e5] And now Bxe5! would win.} Qd7 {[%emt 0:01:14][%cal
Yf4f3]} 34. f3 $1 {[%emt 0:00:29]} b5 {[%emt 0:03:49] [#]} 35. a5 $1 {[%emt 0:
00:00]} Rxc3 {[%emt 0:12:54]} (35... b4 {was worth a try.}) 36. Rxc3 $18 {
[%emt 0:00:50]} ({Don't play} 36. Nxc3 $6 Nd4 $18) 36... Bxa5 {[%emt 0:02:01]}
37. R3c2 {[%emt 0:01:41]} Qa7+ {[%emt 0:00:53]} 38. Kf1 {[%emt 0:01:23]} Nd4 {
[%emt 0:01:08]} (38... Qd4 {was necessary.} 39. Rc6 Bb4) 39. Ra2 {[%emt 0:00:
00]} (39. Rc8 $142) 39... Bd8 {[%emt 0:00:23] [#]} (39... Bb6 {might work
better.} 40. b4 a5 41. bxa5 Bc5) 40. b4 $1 {[%emt 0:00:52]} Bh4 {[%emt 0:00:30]
} (40... Qa8 $142 41. Rc3 Ra7) 41. Rc8 {[%emt 0:32:54]} Bg3 {[%emt 0:12:12]}
42. Qc1 {[%emt 0:00:00]} Ne6 {[%emt 0:02:34]} 43. Qb2 {[%emt 0:00:00]} Bh2 {
[%emt 0:00:44] Hoping for ...Qg1+.} 44. Qf2 {[%emt 0:00:00] Prevents Qg1+.
Active counter play!} Qb7 {[%emt 0:07:38]} 45. Rc3 {[%emt 0:00:00]} Nd4 {
[%emt 0:00:00]} 46. Ra1 {[%emt 0:00:00]} Nf5 {[%emt 0:00:20]} 47. Qb6 {[%emt 0:
00:00]} Ne3+ {[%emt 0:03:26]} 48. Kf2 {[%emt 0:00:00]} Bg3+ {[%emt 0:01:31]}
49. Kg1 {[%emt 0:00:00][%cal Yd5f6] Nf6+! is the strong threat. Chess con
chili.} Nxd5 {[%emt 0:00:32]} 50. Qxb7 {[%emt 0:00:00]} Rxb7 {[%emt 0:00:06]}
51. exd5 {[%emt 0:00:00] Weighted Error Value: White=0.11 (very precise) /
Black=0.30} 1-0

[Event "44th Chess Olympiad Women 2022"]
[Site "Chennai"]
[Date "2022.08.03"]
[Round "6.22"]
[White "Citra, Dewi Ardhiani Anast"]
[Black "Acevedo Mendez, Lisseth"]
[Result "1-0"]
[WhiteElo "2257"]
[BlackElo "1784"]
[Annotator "NA RC"]
[PlyCount "81"]
[EventDate "2022.??.??"]
[TimeControl "60"]

1. d4 {[%emt 0:00:02]} Nf6 {[%emt 0:00:09]} 2. Bf4 {[%emt 0:00:08]} d5 {
[%emt 0:00:14]} 3. e3 {[%emt 0:00:08]} e6 {[%emt 0:00:11]} 4. Nd2 {[%emt 0:00:
00]} c5 {[%emt 0:00:31]} 5. Ngf3 {[%emt 0:00:45]} Nc6 {[%emt 0:00:15]} 6. c3 {
[%emt 0:00:25]} Bd6 {[%emt 0:00:58]} 7. Bg3 {[%emt 0:00:19]} O-O {[%emt 0:00:
00]} 8. Bd3 {[%emt 0:00:07]} b6 {[%emt 0:01:26]} 9. e4 {[%emt 0:00:35]} Be7 {
[%emt 0:01:53]} 10. e5 {[%emt 0:00:09]} Nh5 {[%emt 0:04:07]} 11. Ng5 {[%emt 0:
00:00]} Bxg5 {[%emt 0:00:20]} 12. Qxh5 {[%emt 0:00:13]} g6 {[%emt 0:00:03]} 13.
Qe2 {[%emt 0:01:46]} cxd4 {[%emt 0:00:16]} 14. h4 {[%emt 0:00:11]} Bh6 {
[%emt 0:01:01]} 15. h5 {[%emt 0:00:31]} Bg7 {[%emt 0:03:13]} 16. Nf3 {[%emt 0:
00:00]} dxc3 {[%emt 0:08:11]} 17. bxc3 {[%emt 0:00:10]} f5 {[%emt 0:40:21]} 18.
hxg6 {[%emt 0:02:48]} hxg6 {[%emt 0:01:35]} 19. Bf4 {[%emt 0:01:41]} Qc7 {
[%emt 0:03:39]} 20. Kf1 {[%emt 0:01:48]} Kf7 {[%emt 0:04:45]} 21. Re1 {[%emt 0:
00:00]} Rh8 {[%emt 0:03:21]} 22. Rxh8 {[%emt 0:00:17]} Bxh8 {[%emt 0:00:04]}
23. Qe3 {[%emt 0:03:50]} Kg8 {[%emt 0:00:49]} 24. Nh4 {[%emt 0:02:30]} Qh7 {
[%emt 0:01:23]} 25. Qg3 {[%emt 0:00:48]} Kf7 {[%emt 0:03:50]} 26. Nf3 {[%emt 0:
00:00]} Kf8 {[%emt 0:01:25]} 27. Ng5 {[%emt 0:05:50]} Qg8 {[%emt 0:03:55]} 28.
Qh2 {[%emt 0:01:51]} a5 {[%emt 0:00:49]} 29. Re3 {[%emt 0:00:35]} Bg7 {[%emt 0:
00:00]} 30. Rh3 {[%emt 0:02:01]} Ra7 {[%emt 0:00:58]} 31. Nf3 {[%emt 0:03:24]}
Ba6 {[%emt 0:02:00]} 32. Bxa6 {[%emt 0:00:26]} Rxa6 {[%emt 0:00:05]} 33. Bh6 {
[%emt 0:02:43]} Ra7 {[%emt 0:11:19]} 34. Bxg7+ {[%emt 0:02:40]} Rxg7 {[%emt 0:
00:00]} 35. Rh8 {[%emt 0:00:13]} b5 {[%emt 0:00:09]} 36. Ng5 {[%emt 0:00:30]}
Nd8 {[%emt 0:00:51]} 37. Rxg8+ {[%emt 0:01:13]} Kxg8 {[%emt 0:00:04]} 38. Qg3 {
[%emt 0:00:20]} Kf8 {[%emt 0:00:24]} 39. Qe3 {[%emt 0:00:19]} Rc7 {[%emt 0:00:
00]} 40. Qb6 {[%emt 0:00:10]} Rc8 {[%emt 0:00:55]} 41. Nxe6+ {[%emt 0:30:09]}
1-0